{"text_format":"3","workbook":"xlsx","n_sheets":1,"sheets":["Sheet2"],"read":"whole","date_system":"1900"}

{"sheet":"Sheet2","index":0,"n_rows":69,"n_cols":6,"rows_kept":69}
["Week","Wk Count","Count","Recall Date","Title","URL"]
[{"$f":"WEEKNUM(D2)","v":6},1,{"$f":"\"Week \"&A2&\"- Recall \"&B2","v":"Week 6- Recall 1"},"2026-02-05","Andy & Evan Recalls Children's Pajama Sets Due to Risk of Serious Injury or Death from Burn Hazard; Violate Mandatory Standard for Children's Sleepwear","https://www.cpsc.gov/Recalls/2026/Andy-Evan-Recalls-Childrens-Pajama-Sets-Due-to-Risk-of-Serious-Injury-or-Death-from-Burn-Hazard-Violate-Mandatory-Standard-for-Childrens-Sleepwear "]
[{"$f":"WEEKNUM(D3)","v":6},{"$f":"B2+1","v":2},{"$f":"\"Week \"&A3&\"- Recall \"&B3","v":"Week 6- Recall 2"},"2026-02-05","Aterian Recalls PurSteam Elite Travel Steamers and Mighty Lil Steamers Due to Risk of Serious Burn Injury","https://www.cpsc.gov/Recalls/2026/Aterian-Recalls-PurSteam-Elite-Travel-Steamers-and-Mighty-Lil-Steamers-Due-to-Risk-of-Serious-Burn-Injury "]
[{"$f":"WEEKNUM(D4)","v":6},{"$f":"B3+1","v":3},{"$f":"\"Week \"&A4&\"- Recall \"&B4","v":"Week 6- Recall 3"},"2026-02-05","Clark Associates Recalls Lancaster Table & Seating Powder-Coated Aluminum Outdoor Restaurant Chairs and Barstools Due to Fall Hazard","https://www.cpsc.gov/Recalls/2026/Clark-Associates-Recalls-Lancaster-Table-Seating-Powder-Coated-Aluminum-Outdoor-Restaurant-Chairs-and-Barstools-Due-to-Fall-Hazard"]
[{"$f":"WEEKNUM(D5)","v":6},{"$f":"B4+1","v":4},{"$f":"\"Week \"&A5&\"- Recall \"&B5","v":"Week 6- Recall 4"},"2026-02-05","Cobelae Busy Books Recalled Due to Risk of Serious Injury or Death from Choking Hazard; Violates Small Parts Ban; Sold on Amazon by Flyindream","https://www.cpsc.gov/Recalls/2026/Cobelae-Busy-Books-Recalled-Due-to-Risk-of-Serious-Injury-or-Death-from-Choking-Hazard-Violates-Small-Parts-Ban-Sold-on-Amazon-by-Flyindream"]
[{"$f":"WEEKNUM(D6)","v":6},{"$f":"B5+1","v":5},{"$f":"\"Week \"&A6&\"- Recall \"&B6","v":"Week 6- Recall 5"},"2026-02-05","Dresbe LED Christmas Headbands Recalled Due to Risk of Serious Injury or Death from Battery Ingestion; Violate Mandatory Standard for Consumer Products with Button Cell Batteries","https://www.cpsc.gov/Recalls/2026/Dresbe-LED-Christmas-Headbands-Recalled-Due-to-Risk-of-Serious-Injury-or-Death-from-Battery-Ingestion-Violate-Mandatory-Standard-for-Consumer-Products-with-Button-Cell-Batteries"]
[{"$f":"WEEKNUM(D7)","v":6},{"$f":"B6+1","v":6},{"$f":"\"Week \"&A7&\"- Recall \"&B7","v":"Week 6- Recall 6"},"2026-02-05","EnHomee 10-Drawer Dressers Recalled Due to Risk of Serious Injury or Death from Tip-Over and Entrapment Hazards; Violates Mandatory Standard for Clothing Storage Units","https://www.cpsc.gov/Recalls/2026/EnHomee-10-Drawer-Dressers-Recalled-Due-to-Risk-of-Serious-Injury-or-Death-from-Tip-Over-and-Entrapment-Hazards-Violates-Mandatory-Standard-for-Clothing-Storage-Units"]
[{"$f":"WEEKNUM(D8)","v":6},{"$f":"B7+1","v":7},{"$f":"\"Week \"&A8&\"- Recall \"&B8","v":"Week 6- Recall 7"},"2026-02-05","Fixwal 7-Drawer Dressers Recalled Due to Risk of Serious Injury or Death from Tip-Over and Entrapment Hazards; Violates Mandatory Standard for Clothing Storage Units","https://www.cpsc.gov/Recalls/2026/Fixwal-7-Drawer-Dressers-Recalled-Due-to-Risk-of-Serious-Injury-or-Death-from-Tip-Over-and-Entrapment-Hazards-Violates-Mandatory-Standard-for-Clothing-Storage-Units"]
[{"$f":"WEEKNUM(D9)","v":6},{"$f":"B8+1","v":8},{"$f":"\"Week \"&A9&\"- Recall \"&B9","v":"Week 6- Recall 8"},"2026-02-05","Furnulem 5-Drawer Dressers Recalled Due to Risk of Serious Injury or Death from Tip-Over and Entrapment; Violates Mandatory Standard for Clothing Storage Units","https://www.cpsc.gov/Recalls/2026/Furnulem-5-Drawer-Dressers-Recalled-Due-to-Risk-of-Serious-Injury-or-Death-from-Tip-Over-and-Entrapment-Violates-Mandatory-Standard-for-Clothing-Storage-Units"]
[{"$f":"WEEKNUM(D10)","v":6},{"$f":"B9+1","v":9},{"$f":"\"Week \"&A10&\"- Recall \"&B10","v":"Week 6- Recall 9"},"2026-02-05","GM Gumili Wintergreen Essential Oil Bottles Recalled Due to Risk of Serious Injury or Death from Child Poisoning; Violates Mandatory Standard for Child-Resistant Packaging; Sold on Amazon by Gumili Beauty","https://www.cpsc.gov/Recalls/2026/GM-Gumili-Wintergreen-Essential-Oil-Bottles-Recalled-Due-to-Risk-of-Serious-Injury-or-Death-from-Child-Poisoning-Violates-Mandatory-Standard-for-Child-Resistant-Packaging-Sold-on-Amazon-by-Gumili-Beauty"]
[{"$f":"WEEKNUM(D11)","v":6},{"$f":"B10+1","v":10},{"$f":"\"Week \"&A11&\"- Recall \"&B11","v":"Week 6- Recall 10"},"2026-02-05","Kitosun Submersible LED Lights Recalled Due to Risk of Serious Injury or Death from Battery Ingestion; Violates Mandatory Standard for Consumer Products with Coin Batteries","https://www.cpsc.gov/Recalls/2026/Kitosun-Submersible-LED-Light-Recalled-Due-to-Risk-of-Serious-Injury-or-Death-from-Battery-Ingestion-Violates-Mandatory-Standard-for-Consumer-Products-with-Coin-Batteries"]
[{"$f":"WEEKNUM(D12)","v":6},{"$f":"B11+1","v":11},{"$f":"\"Week \"&A12&\"- Recall \"&B12","v":"Week 6- Recall 11"},"2026-02-05","Little Cow Company Recalls 9 oz Candles in Glass Jars Due to Fire, Burn and Laceration Hazards","https://www.cpsc.gov/Recalls/2026/Little-Cow-Company-Recalls-9-oz-Candles-in-Glass-Jars-Due-to-Fire-Burn-and-Laceration-Hazards"]
[{"$f":"WEEKNUM(D13)","v":6},{"$f":"B12+1","v":12},{"$f":"\"Week \"&A13&\"- Recall \"&B13","v":"Week 6- Recall 12"},"2026-02-05","Lola Plus The Boys Recalls Youth Clothing with Drawstrings Due to Risk of Serious Injury or Death from Strangulation Hazard; Violates Federal Rule for Children's Upper Outerwear","https://www.cpsc.gov/Recalls/2026/Lola-Plus-The-Boys-Recalls-Youth-Clothing-with-Drawstrings-Due-to-Risk-of-Serious-Injury-or-Death-from-Strangulation-Hazard-Violates-Federal-Rule-for-Childrens-Upper-Outerwear"]
[{"$f":"WEEKNUM(D14)","v":6},{"$f":"B13+1","v":13},{"$f":"\"Week \"&A14&\"- Recall \"&B14","v":"Week 6- Recall 13"},"2026-02-05","Organic Zing Birch Essential Oil Bottles Recalled Due to Risk of Serious Injury or Death from Child Poisoning; Violates Mandatory Standard for Child-Resistant Packaging; Sold on Amazon by Linkers","https://www.cpsc.gov/Recalls/2026/Organic-Zing-Birch-Essential-Oil-Bottles-Recalled-Due-to-Risk-of-Serious-Injury-or-Death-from-Child-Poisoning-Violates-Mandatory-Standard-for-Child-Resistant-Packaging-Sold-on-Amazon-by-Linkers"]
[{"$f":"WEEKNUM(D15)","v":6},{"$f":"B14+1","v":14},{"$f":"\"Week \"&A15&\"- Recall \"&B15","v":"Week 6- Recall 14"},"2026-02-05","Semfri Children's Helmets Recalled Due to Risk of Serious Injury or Death from Head Injury; Violates Mandatory Standard for Bicycle Helmets","https://www.cpsc.gov/Recalls/2026/Semfri-Childrens-Helmets-Recalled-Due-to-Risk-of-Serious-Injury-or-Death-from-Head-Injury-Violates-Mandatory-Standard-for-Bicycle-Helmets"]
[{"$f":"WEEKNUM(D16)","v":6},{"$f":"B15+1","v":15},{"$f":"\"Week \"&A16&\"- Recall \"&B16","v":"Week 6- Recall 15"},"2026-02-05","Shintenchi 6-Drawer Dressers Recalled Due to Risk of Serious Injury or Death from Tip-Over and Entrapment Hazards; Violate Mandatory Standard for Clothing Storage Units","https://www.cpsc.gov/Recalls/2026/Shintenchi-6-Drawer-Dressers-Recalled-Due-to-Risk-of-Serious-Injury-or-Death-from-Tip-Over-and-Entrapment-Hazards-Violate-Mandatory-Standard-for-Clothing-Storage-Units"]
[{"$f":"WEEKNUM(D17)","v":6},{"$f":"B16+1","v":16},{"$f":"\"Week \"&A17&\"- Recall \"&B17","v":"Week 6- Recall 16"},"2026-02-05","YITA Recalls Multiple Brands of Dressers Due to Risk of Serious Injury or Death from Tip-Over and Entrapment Hazards; Violates Mandatory Standard for Clothing Storage Units","https://www.cpsc.gov/Recalls/2026/YITA-Recalls-Multiple-Brands-of-Dressers-Due-to-Risk-of-Serious-Injury-or-Death-from-Tip-Over-and-Entrapment-Hazards-Violates-Mandatory-Standard-for-Clothing-Storage-Units"]
[{"$f":"WEEKNUM(D18)","v":6},{"$f":"B17+1","v":17},{"$f":"\"Week \"&A18&\"- Recall \"&B18","v":"Week 6- Recall 17"},"2026-02-05","Zan International Trading Recalls Lotus Joy Sweet Birch Essential Oil Bottles Due to Risk of Serious Injury or Death from Child Poisoning; Violates Mandatory Standard for Child-Resistant Packaging","https://www.cpsc.gov/Recalls/2026/Zan-International-Trading-Recalls-Lotus-Joy-Sweet-Birch-Essential-Oil-Bottles-Due-to-Risk-of-Serious-Injury-or-Death-from-Child-Poisoning-Violates-Mandatory-Standard-for-Child-Resistant-Packaging"]
[{"$f":"WEEKNUM(D19)","v":6},{"$f":"B18+1","v":18},{"$f":"\"Week \"&A19&\"- Recall \"&B19","v":"Week 6- Recall 18"},"2026-02-04","Scepter Fuel Containers Recalled Due to Risk of Serious Injury or Death from Flash Fire, Burn and Child Poisoning; Violates Mandatory Standards for Portable Fuel Containers; Imported by Mameix Retail","https://www.cpsc.gov/Recalls/2026/Scepter-Fuel-Containers-Recalled-Due-to-Risk-of-Serious-Injury-or-Death-from-Flash-Fire-Burn-and-Child-Poisoning-Violates-Mandatory-Standards-for-Portable-Fuel-Containers-Imported-by-Mameix-Retail"]
[{"$f":"WEEKNUM(D20)","v":5},1,{"$f":"\"Week \"&A20&\"- Recall \"&B20","v":"Week 5- Recall 1"},"2026-01-29","AiTuiTui Pull String Teething Toys Recalled Due to Risk of Serious Injury or Death from Choking; Violate Mandatory Standard for Toys; Sold on Amazon by Vanfun","https://www.cpsc.gov/Recalls/2026/AiTuiTui-Pull-String-Teething-Toys-Recalled-Due-to-Risk-of-Serious-Injury-or-Death-from-Choking-Violate-Mandatory-Standard-for-Toys-Sold-on-Amazon-by-Vanfun"]
[{"$f":"WEEKNUM(D21)","v":5},{"$f":"B20+1","v":2},{"$f":"\"Week \"&A21&\"- Recall \"&B21","v":"Week 5- Recall 2"},"2026-01-29","Bazic Products Recalls Bazic Silicone Glue Due to Risk of Serious Injury or Death from Child Poisoning; Violates Mandatory Standard for Child Resistant Packaging and FHSA Labeling Requirements","https://www.cpsc.gov/Recalls/2026/Bazic-Products-Recalls-Bazic-Silicone-Glue-Due-to-Risk-of-Serious-Injury-or-Death-from-Child-Poisoning-Violates-Mandatory-Standard-for-Child-Resistant-Packaging-and-FHSA-Labeling-Requirements"]
[{"$f":"WEEKNUM(D22)","v":5},{"$f":"B21+1","v":3},{"$f":"\"Week \"&A22&\"- Recall \"&B22","v":"Week 5- Recall 3"},"2026-01-29","Gazelle USA Recalls Urban Arrow FamilyNext Pro Cargo E-Bikes Due to Injury Hazard","https://www.cpsc.gov/Recalls/2026/Gazelle-USA-Recalls-Urban-Arrow-FamilyNext-Pro-Cargo-E-Bikes-Due-to-Injury-Hazard"]
[{"$f":"WEEKNUM(D23)","v":5},{"$f":"B22+1","v":4},{"$f":"\"Week \"&A23&\"- Recall \"&B23","v":"Week 5- Recall 4"},"2026-01-29","Hobby Lobby Recalls Giraffe and Llama Plush Toys with Clips Due to Choking Hazard","https://www.cpsc.gov/Recalls/2026/Hobby-Lobby-Recalls-Giraffe-and-Llama-Plush-Toys-with-Clips-Due-to-Choking-Hazard"]
[{"$f":"WEEKNUM(D24)","v":5},{"$f":"B23+1","v":5},{"$f":"\"Week \"&A24&\"- Recall \"&B24","v":"Week 5- Recall 5"},"2026-01-29","Hobby Lobby Recalls Giraffe and Llama Plush Toys with Clips Due to Drowning Hazard; Manufactured by Starmatrix Group Drowning Hazard; Manufactured by Starmatrix Group","https://www.cpsc.gov/Recalls/2026/Sunneday-and-Blue-Bay-Above-Ground-Pools-48-Inches-and-Taller-Recalled-Due-to-Drowning-Hazard-Manufactured-by-Starmatrix-Group"]
[{"$f":"WEEKNUM(D25)","v":5},{"$f":"B24+1","v":6},{"$f":"\"Week \"&A25&\"- Recall \"&B25","v":"Week 5- Recall 6"},"2026-01-29","LuxJet Submersible LED Lights Recalled Due to Risk of Serious Injury or Death from Battery Ingestion; Violates Mandatory Standard for Consumer Products with Coin Batteries","https://www.cpsc.gov/Recalls/2026/LuxJet-Submersible-LED-Lights-Recalled-Due-to-Risk-of-Serious-Injury-or-Death-from-Battery-Ingestion-Violates-Mandatory-Standard-for-Consumer-Products-with-Coin-Batteries"]
[{"$f":"WEEKNUM(D26)","v":5},{"$f":"B25+1","v":7},{"$f":"\"Week \"&A26&\"- Recall \"&B26","v":"Week 5- Recall 7"},"2026-01-29","Mindbodygreen Recalls Ultimate Multivitamin+ Dietary Supplement Bottles Due to Risk of Serious Injury or Death from Child Poisoning; Violates Mandatory Standard for Child-Resistant Packaging","https://www.cpsc.gov/Recalls/2026/Mindbodygreen-Recalls-Ultimate-Multivitamin-Dietary-Supplement-Bottles-Due-to-Risk-of-Serious-Injury-or-Death-from-Child-Poisoning-Violates-Mandatory-Standard-for-Child-Resistant-Packaging"]
[{"$f":"WEEKNUM(D27)","v":5},{"$f":"B26+1","v":8},{"$f":"\"Week \"&A27&\"- Recall \"&B27","v":"Week 5- Recall 8"},"2026-01-29","Northern Tool + Equipment Recalls Hot Water Pressure Washers Due to Fire Hazard","https://www.cpsc.gov/Recalls/2026/Northern-Tool-Equipment-Recalls-Hot-Water-Pressure-Washers-Due-to-Fire-Hazard"]
[{"$f":"WEEKNUM(D28)","v":5},{"$f":"B27+1","v":9},{"$f":"\"Week \"&A28&\"- Recall \"&B28","v":"Week 5- Recall 9"},"2026-01-29","Primark Recalls The Nightmare Before Christmas Glow-in-the-Dark Coloring Sets Due to Ingestion Hazard","https://www.cpsc.gov/Recalls/2026/Primark-Recalls-The-Nightmare-Before-Christmas-Glow-in-the-Dark-Coloring-Sets-Due-to-Ingestion-Hazard"]
[{"$f":"WEEKNUM(D29)","v":5},{"$f":"B28+1","v":10},{"$f":"\"Week \"&A29&\"- Recall \"&B29","v":"Week 5- Recall 10"},"2026-01-29","Rear Bolts on Trek and Electra Electric Bicycles Recalled Due to Fall Hazard; Manufactured by Hyena","https://www.cpsc.gov/Recalls/2026/Rear-Bolts-on-Trek-and-Electra-Electric-Bicycles-Recalled-Due-to-Fall-Hazard-Manufactured-by-Hyena"]
[{"$f":"WEEKNUM(D30)","v":5},{"$f":"B29+1","v":11},{"$f":"\"Week \"&A30&\"- Recall \"&B30","v":"Week 5- Recall 11"},"2026-01-29","Sefudun 5% Minoxidil Hair Growth Serum Kits Recalled Due to Risk of Serious Injury or Death from Child Poisoning; Violates Mandatory Standard for Child-Resistant Packaging; Sold on Amazon by Nengmiaokeji","https://www.cpsc.gov/Recalls/2026/Sefudun-5-Minoxidil-Hair-Growth-Serum-Kits-Recalled-Due-to-Risk-of-Serious-Injury-or-Death-from-Child-Poisoning-Violates-Mandatory-Standard-for-Child-Resistant-Packaging-Sold-on-Amazon-by-Nengmiaokeji"]
[{"$f":"WEEKNUM(D31)","v":5},{"$f":"B30+1","v":12},{"$f":"\"Week \"&A31&\"- Recall \"&B31","v":"Week 5- Recall 12"},"2026-01-29","Viofairy Hair Growth Serum Bottles Recalled Due to Risk of Serious Injury or Death from Child Poisoning; Violates Mandatory Standard for Child-Resistant Packaging; Sold on Amazon by FDA","https://www.cpsc.gov/Recalls/2026/Viofairy-Hair-Growth-Serum-Bottles-Recalled-Due-to-Risk-of-Serious-Injury-or-Death-from-Child-Poisoning-Violates-Mandatory-Standard-for-Child-Resistant-Packaging-Sold-on-Amazon-by-FDAF"]
[{"$f":"WEEKNUM(D32)","v":4},1,{"$f":"\"Week \"&A32&\"- Recall \"&B32","v":"Week 4- Recall 1"},"2026-01-22","Aborder Products Recalls Cumbor Retractable Safety Gates Due to Risk of Serious Injury or Death to Children from Entrapment; Violates Mandatory Standard for Gates and Enclosures","https://www.cpsc.gov/Recalls/2026/Aborder-Products-Recalls-Cumbor-Retractable-Safety-Gates-Due-to-Risk-of-Serious-Injury-or-Death-to-Children-from-Entrapment-Violates-Mandatory-Standard-for-Gates-and-Enclosures"]
[{"$f":"WEEKNUM(D33)","v":4},{"$f":"B32+1","v":2},{"$f":"\"Week \"&A33&\"- Recall \"&B33","v":"Week 4- Recall 2"},"2026-01-22","Academy Sports + Outdoors Recalls Magellan Odyssey Rocker Chairs Due to Injury and Fall Hazards","https://www.cpsc.gov/Recalls/2026/Academy-Sports-Outdoors-Recalls-Magellan-Odyssey-Rocker-Chairs-Due-to-Injury-and-Fall-Hazards"]
[{"$f":"WEEKNUM(D34)","v":4},{"$f":"B33+1","v":3},{"$f":"\"Week \"&A34&\"- Recall \"&B34","v":"Week 4- Recall 3"},"2026-01-22","Based Online Fidget Magnet Ball Toys Recalled Due to Risk of Serious Injury or Death from Magnet Ingestion; Violate Mandatory Standard for Toys","https://www.cpsc.gov/Recalls/2026/Based-Online-Fidget-Magnet-Ball-Toys-Recalled-Due-to-Risk-of-Serious-Injury-or-Death-from-Magnet-Ingestion-Violate-Mandatory-Standard-for-Toys"]
[{"$f":"WEEKNUM(D35)","v":4},{"$f":"B34+1","v":4},{"$f":"\"Week \"&A35&\"- Recall \"&B35","v":"Week 4- Recall 4"},"2026-01-22","Gagaku Children's Ice Cream Toy Playsets Recalled Due to Risk of Serious Injury or Death from Magnet Ingestion Hazard; Violate Mandatory Standard for Toys; Sold on Amazon by Brandworl.USA","https://www.cpsc.gov/Recalls/2026/Gagaku-Childrens-Ice-Cream-Toy-Playsets-Recalled-Due-to-Risk-of-Serious-Injury-or-Death-from-Magnet-Ingestion-Hazard-Violate-Mandatory-Standard-for-Toys-Sold-on-Amazon-by-Brandworl-USA"]
[{"$f":"WEEKNUM(D36)","v":4},{"$f":"B35+1","v":5},{"$f":"\"Week \"&A36&\"- Recall \"&B36","v":"Week 4- Recall 5"},"2026-01-22","Iristar Minoxidil Spray Bottles for Hair and Beard Growth Recalled Due to Risk of Serious Injury or Death from Child Poisoning; Violates Mandatory Standard for Child-Resistant Packaging; Sold on Amazon by Moralowen","https://www.cpsc.gov/Recalls/2026/Iristar-Minoxidil-Spray-Bottles-for-Hair-and-Beard-Growth-Recalled-Due-to-Risk-of-Serious-Injury-or-Death-from-Child-Poisoning-Violates-Mandatory-Standard-for-Child-Resistant-Packaging-Sold-on-Amazon-by-Moralowen"]
[{"$f":"WEEKNUM(D37)","v":4},{"$f":"B36+1","v":6},{"$f":"\"Week \"&A37&\"- Recall \"&B37","v":"Week 4- Recall 6"},"2026-01-22","Johnson Health Tech Expands Recall to Include Matrix Retail and Vision Treadmills Due to Fire Hazard","https://www.cpsc.gov/Recalls/2026/Johnson-Health-Tech-Expands-Recall-to-Include-Matrix-Retail-and-Vision-Treadmills-Due-to-Fire-Hazard"]
[{"$f":"WEEKNUM(D38)","v":4},{"$f":"B37+1","v":7},{"$f":"\"Week \"&A38&\"- Recall \"&B38","v":"Week 4- Recall 7"},"2026-01-22","Mikario Trading Convertible Baby Gyms Recalled Due to Risk of Serious Injury or Death from Suffocation; Violate Mandatory Standard for Infant Support Cushions; Sold on TikTok Shop","https://www.cpsc.gov/Recalls/2026/Mikario-Trading-Convertible-Baby-Gyms-Recalled-Due-to-Risk-of-Serious-Injury-or-Death-from-Suffocation-Violate-Mandatory-Standard-for-Infant-Support-Cushions-Sold-on-TikTok-Shop"]
[{"$f":"WEEKNUM(D39)","v":4},{"$f":"B38+1","v":8},{"$f":"\"Week \"&A39&\"- Recall \"&B39","v":"Week 4- Recall 8"},"2026-01-22","Thrasio Recalls Angry Orange Enzyme Stain Removers Due to Risk of Exposure to Bacteria","https://www.cpsc.gov/Recalls/2026/Thrasio-Recalls-Angry-Orange-Enzyme-Stain-Removers-Due-to-Risk-of-Exposure-to-Bacteria"]
[{"$f":"WEEKNUM(D40)","v":4},{"$f":"B39+1","v":9},{"$f":"\"Week \"&A40&\"- Recall \"&B40","v":"Week 4- Recall 9"},"2026-01-22","Topkay Lighters Recalled Due to Risk of Serious Injury or Death from Fire and Burn Hazards; Violates Mandatory Standard for Multipurpose Lighters; Sold on Amazon by Xiyude","https://www.cpsc.gov/Recalls/2026/Topkay-Lighters-Recalled-Due-to-Risk-of-Serious-Injury-or-Death-from-Fire-and-Burn-Hazards-Violates-Mandatory-Standard-for-Multipurpose-Lighters-Sold-on-Amazon-by-Xiyude"]
[{"$f":"WEEKNUM(D41)","v":4},{"$f":"B40+1","v":10},{"$f":"\"Week \"&A41&\"- Recall \"&B41","v":"Week 4- Recall 10"},"2026-01-22","Vndueey Magnetic Men Toy Sets Recalled Due to Risk of Serious Injury or Death from Magnet Ingestion; Violates Mandatory Standard for Toys","https://www.cpsc.gov/Recalls/2026/Vndueey-Magnetic-Men-Toy-Sets-Recalled-Due-to-Risk-of-Serious-Injury-or-Death-from-Magnet-Ingestion-Violates-Mandatory-Standard-for-Toys"]
[{"$f":"WEEKNUM(D42)","v":4},{"$f":"B41+1","v":11},{"$f":"\"Week \"&A42&\"- Recall \"&B42","v":"Week 4- Recall 11"},"2026-01-22","Yetonamr Pull String Teething Toys Recalled Due to Risk of Serious Injury or Death from Choking; Violate Mandatory Standard for Toys; Sold on Amazon by Longyanguiheng","https://www.cpsc.gov/Recalls/2026/Yetonamr-Pull-String-Teething-Toys-Recalled-Due-to-Risk-of-Serious-Injury-or-Death-from-Choking-Violate-Mandatory-Standard-for-Toys-Sold-on-Amazon-by-Longyanguiheng"]
[{"$f":"WEEKNUM(D43)","v":3},1,{"$f":"\"Week \"&A43&\"- Recall \"&B43","v":"Week 3- Recall 1"},"2026-01-15","Adams Manufacturing Recalls Adirondack Patio Chairs Due to Injury and Fall Hazards","https://www.cpsc.gov/Recalls/2026/Adams-Manufacturing-Recalls-Adirondack-Patio-Chairs-Due-to-Injury-and-Fall-Hazards"]
[{"$f":"WEEKNUM(D44)","v":3},{"$f":"B43+1","v":2},{"$f":"\"Week \"&A44&\"- Recall \"&B44","v":"Week 3- Recall 2"},"2026-01-15","BBWOO Baby Loungers Recalled Due to Risk of Serious Injury or Death from Head Injury; Violates Mandatory Standard for Bicycle Helmets","https://www.cpsc.gov/Recalls/2026/BBWOO-Baby-Loungers-Recalled-Due-to-Risk-of-Serious-Injury-or-Death-from-Entrapment-and-Fall-Hazards-Violate-Mandatory-Standard-for-Infant-Sleep-Products-Sold-on-Amazon-by-LSY-Direct"]
[{"$f":"WEEKNUM(D45)","v":3},{"$f":"B44+1","v":3},{"$f":"\"Week \"&A45&\"- Recall \"&B45","v":"Week 3- Recall 3"},"2026-01-15","Curtis International Expands Recall of Frigidaire-brand Minifridges Due to Fire and Burn Hazards","https://www.cpsc.gov/Recalls/2026/Curtis-International-Expands-Recall-of-Frigidaire-brand-Minifridges-Due-to-Fire-and-Burn-Hazards"]
[{"$f":"WEEKNUM(D46)","v":3},{"$f":"B45+1","v":4},{"$f":"\"Week \"&A46&\"- Recall \"&B46","v":"Week 3- Recall 4"},"2026-01-15","Energizer Recalls Rechargeable Lanterns Due to Overheating","https://www.cpsc.gov/Recalls/2026/Energizer-Recalls-Rechargeable-Lanterns-Due-to-Overheating"]
[{"$f":"WEEKNUM(D47)","v":3},{"$f":"B46+1","v":5},{"$f":"\"Week \"&A47&\"- Recall \"&B47","v":"Week 3- Recall 5"},"2026-01-15","Greatale Recalls Self-Feeding Pillows Due to Risk of Serious Injury or Death from Aspiration and Suffocation","https://www.cpsc.gov/Recalls/2026/Greatale-Recalls-Self-Feeding-Pillows-Due-to-Risk-of-Serious-Injury-or-Death-from-Aspiration-and-Suffocation"]
[{"$f":"WEEKNUM(D48)","v":3},{"$f":"B47+1","v":6},{"$f":"\"Week \"&A48&\"- Recall \"&B48","v":"Week 3- Recall 6"},"2026-01-15","HEZI Brand Power Strips Recalled Due to Risk of Serious Injury or Death from Electrocution; Sold by HEZI HOME","https://www.cpsc.gov/Recalls/2026/HEZI-Brand-Power-Strips-Recalled-Due-to-Risk-of-Serious-Injury-or-Death-from-Electrocution-Sold-by-HEZI-HOME"]
[{"$f":"WEEKNUM(D49)","v":3},{"$f":"B48+1","v":7},{"$f":"\"Week \"&A49&\"- Recall \"&B49","v":"Week 3- Recall 7"},"2026-01-15","Morgan Lane Recalls Children's Pajama Sets Due to Risk of Serious Injury or Death from Burn Hazard; Violate Mandatory Flammability Standards for Children's Sleepwear","https://www.cpsc.gov/Recalls/2026/Morgan-Lane-Recalls-Childrens-Pajama-Sets-Due-to-Risk-of-Serious-Injury-or-Death-from-Burn-Hazard-Violate-Mandatory-Flammability-Standards-for-Childrens-Sleepwear"]
[{"$f":"WEEKNUM(D50)","v":3},{"$f":"B49+1","v":8},{"$f":"\"Week \"&A50&\"- Recall \"&B50","v":"Week 3- Recall 8"},"2026-01-15","R.X.Y Bicycle Helmets Recalled Due to Risk of Serious Injury or Death from Head Injury; Violates Mandatory Standard for Bicycle Helmets","https://www.cpsc.gov/Recalls/2026/RXY-Bicycle-Helmets-Recalled-Due-to-Risk-of-Serious-Injury-or-Death-from-Head-Injury-Violates-Mandatory-Standard-for-Bicycle-Helmets"]
[{"$f":"WEEKNUM(D51)","v":3},{"$f":"B50+1","v":9},{"$f":"\"Week \"&A51&\"- Recall \"&B51","v":"Week 3- Recall 9"},"2026-01-15","RootStim Recalls Beard Growth Serum Spray Bottles Due to Risk of Serious Injury or Death from Child Poisoning; Violate Mandatory Standard for Child-Resistant Packaging","https://www.cpsc.gov/Recalls/2026/RootStim-Recalls-Beard-Growth-Serum-Spray-Bottles-Due-to-Risk-of-Serious-Injury-or-Death-from-Child-Poisoning-Violate-Mandatory-Standard-for-Child-Resistant-Packaging"]
[{"$f":"WEEKNUM(D52)","v":3},{"$f":"B51+1","v":10},{"$f":"\"Week \"&A52&\"- Recall \"&B52","v":"Week 3- Recall 10"},"2026-01-15","Ruahouine Hair Growth Serum Bottles Recalled Due to Risk of Serious Injury or Death from Child Poisoning; Violates Mandatory Standard for Child-Resistant Packaging; Sold on Amazon by Ruahouine","https://www.cpsc.gov/Recalls/2026/Ruahouine-Hair-Growth-Serum-Bottles-Recalled-Due-to-Risk-of-Serious-Injury-or-Death-from-Child-Poisoning-Violates-Mandatory-Standard-for-Child-Resistant-Packaging-Sold-on-Amazon-by-Ruahouine"]
[{"$f":"WEEKNUM(D53)","v":3},{"$f":"B52+1","v":11},{"$f":"\"Week \"&A53&\"- Recall \"&B53","v":"Week 3- Recall 11"},"2026-01-15","Yixing Trading Recalls KEAWIS Crib Mattresses Due to Risk of Serious Injury or Death from Entrapment and Suffocation; Violates Mandatory Standard for Crib Mattresses","https://www.cpsc.gov/Recalls/2026/Yixing-Trading-Recalls-KEAWIS-Crib-Mattresses-Due-to-Risk-of-Serious-Injury-or-Death-from-Entrapment-and-Suffocation-Violates-Mandatory-Standard-for-Crib-Mattresses"]
[{"$f":"WEEKNUM(D54)","v":2},1,{"$f":"\"Week \"&A54&\"- Recall \"&B54","v":"Week 2- Recall 1"},"2026-01-08","Agrish Adult Portable Bed Rails Recalled Due to Risk of Serious Injury or Death from Entrapment and Asphyxiation; Violate Mandatory Standard for Adult Portable Bed Rails; Sold on Amazon by Agrish Direct","https://www.cpsc.gov/Recalls/2026/Agrish-Adult-Portable-Bed-Rails-Recalled-Due-to-Risk-of-Serious-Injury-or-Death-from-Entrapment-and-Asphyxiation-Violate-Mandatory-Standard-for-Adult-Portable-Bed-Rails-Sold-on-Amazon%20by-Agrish-Direct"]
[{"$f":"WEEKNUM(D55)","v":2},{"$f":"B54+1","v":2},{"$f":"\"Week \"&A55&\"- Recall \"&B55","v":"Week 2- Recall 2"},"2026-01-08","DR Power Equipment Reannounces and Expands Recall of Leaf Vacuums Due to Laceration Hazard; New Remedy Available","https://www.cpsc.gov/Recalls/2026/DR-Power-Equipment-Reannounces-and-Expands-Recall-of-Leaf-Vacuums-Due-to-Laceration-Hazard-New-Remedy-Available"]
[{"$f":"WEEKNUM(D56)","v":2},{"$f":"B55+1","v":3},{"$f":"\"Week \"&A56&\"- Recall \"&B56","v":"Week 2- Recall 3"},"2026-01-08","Infant Innovations Recalls BabyBond Retractable Safety Gates Due to Risk of Serious Injury or Death to Children from Entrapment; Violates Mandatory Standard for Gates and Enclosures","https://www.cpsc.gov/Recalls/2026/Infant-Innovations-Recalls-BabyBond-Retractable-Safety-Gates-Due-to-Risk-of-Serious-Injury-or-Death-to-Children-from-Entrapment-Violates-Mandatory-Standard-for-Gates-and-Enclosures"]
[{"$f":"WEEKNUM(D57)","v":2},{"$f":"B56+1","v":4},{"$f":"\"Week \"&A57&\"- Recall \"&B57","v":"Week 2- Recall 4"},"2026-01-08","Isla Rae Magnetic Wireless Chargers Recalled Due to Fire and Burn Hazards; Sold by TJX at T.J. Maxx and Marshalls Stores","https://www.cpsc.gov/Recalls/2026/Isla-Rae-Magnetic-Wireless-Chargers-Recalled-Due-to-Fire-and-Burn-Hazards-Sold-by-TJX-at-TJ-Maxx-and-Marshalls-Stores"]
[{"$f":"WEEKNUM(D58)","v":2},{"$f":"B57+1","v":5},{"$f":"\"Week \"&A58&\"- Recall \"&B58","v":"Week 2- Recall 5"},"2026-01-08","Joyful Journeys Recalls Baby Loungers Due to Risk of Serious Injury or Death from Entrapment and Fall Hazards; Violates Mandatory Standard for Infant Sleep Products","https://www.cpsc.gov/Recalls/2026/Joyful-Journeys-Recalls-Baby-Loungers-Due-to-Risk-of-Serious-Injury-or-Death-from-Entrapment-and-Fall-Hazards-Violates-Mandatory-Standard-for-Infant-Sleep-Products"]
[{"$f":"WEEKNUM(D59)","v":2},{"$f":"B58+1","v":6},{"$f":"\"Week \"&A59&\"- Recall \"&B59","v":"Week 2- Recall 6"},"2026-01-08","Kori Gey Water Toy Kits Recalled Due to Risk of Serious Injury or Death from Battery Ingestion; Violates Mandatory Standard for Toys; Sold on Amazon by Qaniy","https://www.cpsc.gov/Recalls/2026/Kori-Gey-Water-Toy-Kits-Recalled-Due-to-Risk-of-Serious-Injury-or-Death-from-Battery-Ingestion-Violates-Mandatory-Standard-for-Toys-Sold-on-Amazon-by-Qaniy"]
[{"$f":"WEEKNUM(D60)","v":2},{"$f":"B59+1","v":7},{"$f":"\"Week \"&A60&\"- Recall \"&B60","v":"Week 2- Recall 7"},"2026-01-08","Marcus Adler Glove Recalls Julie and Judah Pajama Pants and Shorts Due to Burn Hazard; Violates Mandatory Flammability Standards for Children's Sleepwear","https://www.cpsc.gov/Recalls/2026/Marcus-Adler-Glove-Recalls-Julie-and-Judah-Pajama-Pants-and-Shorts-Due-to-Burn-Hazard-Violates-Mandatory-Flammability-Standards-for-Childrens-Sleepwear"]
[{"$f":"WEEKNUM(D61)","v":2},{"$f":"B60+1","v":8},{"$f":"\"Week \"&A61&\"- Recall \"&B61","v":"Week 2- Recall 8"},"2026-01-08","NFSVLB Baby Bath Seats Recalled Due to Risk of Serious Injury or Death to Children from Drowning and Entrapment; Violate Mandatory Standard for Infant Bath Seats; Sold on Amazon by NFSVLB","https://www.cpsc.gov/Recalls/2026/NFSVLB-Baby-Bath-Seats-Recalled-Due-to-Risk-of-Serious-Injury-or-Death-to-Children-from-Drowning-and-Entrapment-Violate-Mandatory-Standard-for-Infant-Bath-Seats-Sold-on-Amazon-by-NFSVLB"]
[{"$f":"WEEKNUM(D62)","v":2},{"$f":"B61+1","v":9},{"$f":"\"Week \"&A62&\"- Recall \"&B62","v":"Week 2- Recall 9"},"2026-01-08","PNW Components Recalls Aluminum Alloy Bicycle Pedals Due to Crash Hazard","https://www.cpsc.gov/Recalls/2026/PNW-Components-Recalls-Aluminum-Alloy-Bicycle-Pedals-Due-to-Crash-Hazard"]
[{"$f":"WEEKNUM(D63)","v":2},{"$f":"B62+1","v":10},{"$f":"\"Week \"&A63&\"- Recall \"&B63","v":"Week 2- Recall 10"},"2026-01-08","Pounding Toys Recalled Due to Risk of Serious Injury or Death from Magnet Ingestion Hazard; Violate Mandatory Standard for Toys; Sold on Amazon by Findriver and Weeksome","https://www.cpsc.gov/Recalls/2026/Pounding-Toys-Recalled-Due-to-Risk-of-Serious-Injury-or-Death-from-Magnet-Ingestion-Hazard-Violate-Mandatory-Standard-for-Toys-Sold-on-Amazon-by-Findriver-and-Weeksome"]
[{"$f":"WEEKNUM(D64)","v":2},{"$f":"B63+1","v":11},{"$f":"\"Week \"&A64&\"- Recall \"&B64","v":"Week 2- Recall 11"},"2026-01-08","Rattan 6-Drawer Dressers Recalled Due to Risk of Serious Injury or Death from Tip-Over and Entrapment; Violate Mandatory Standard for Clothing Storage Units; Sold on Amazon by Rattan","https://www.cpsc.gov/Recalls/2026/Rattan-6-Drawer-Dressers-Recalled-Due-to-Risk-of-Serious-Injury-or-Death-from-Tip-Over-and-Entrapment;-Violate-Mandatory-Standard-for-Clothing-Storage-Units-Sold-on-Amazon-by-Rattan"]
[{"$f":"WEEKNUM(D65)","v":2},{"$f":"B64+1","v":12},{"$f":"\"Week \"&A65&\"- Recall \"&B65","v":"Week 2- Recall 12"},"2026-01-08","RH Recalls Natural Antler Chandeliers Due to Impact Hazard","https://www.cpsc.gov/Recalls/2026/RH-Recalls-Natural-Antler-Chandeliers-Due-to-Impact-Hazard"]
[{"$f":"WEEKNUM(D66)","v":2},{"$f":"B65+1","v":13},{"$f":"\"Week \"&A66&\"- Recall \"&B66","v":"Week 2- Recall 13"},"2026-01-08","Sangohe Adult Portable Bed Rails Recalled Due to Risk of Serious Injury or Death from Entrapment and Asphyxiation; Violate Mandatory Standard for Adult Portable Bed Rails","https://www.cpsc.gov/Recalls/2026/Sangohe-Adult-Portable-Bed-Rails-Recalled-Due-to-Risk-of-Serious-Injury-or-Death-from-Entrapment-and-Asphyxiation-Violate-Mandatory-Standard-for-Adult-Portable-Bed-Rails"]
[{"$f":"WEEKNUM(D67)","v":2},{"$f":"B66+1","v":14},{"$f":"\"Week \"&A67&\"- Recall \"&B67","v":"Week 2- Recall 14"},"2026-01-08","The Kalencom Corporation Recalls SARO Braided Crib Bumpers Due to Risk of Serious Injury or Death from Suffocation; Violates Federal Crib Bumper Ban","https://www.cpsc.gov/Recalls/2026/The-Kalencom-Corporation-Recalls-SARO-Braided-Crib-Bumpers-Due-to-Risk-of-Serious-Injury-or-Death-from-Suffocation-Violates-Federal-Crib-Bumper-Ban"]
[{"$f":"WEEKNUM(D68)","v":2},{"$f":"B67+1","v":15},{"$f":"\"Week \"&A68&\"- Recall \"&B68","v":"Week 2- Recall 15"},"2026-01-08","Vasicar 18-Drawer Dressers Recalled Due to Risk of Serious Injury or Death from Tip-Over and Entrapment; Violates Mandatory Standard for Clothing Storage Units","https://www.cpsc.gov/Recalls/2026/Vasicar-18-Drawer-Dressers-Recalled-Due-to-Risk-of-Serious-Injury-or-Death-from-Tip-Over-and-Entrapment-Violates-Mandatory-Standard-for-Clothing-Storage-Units"]
[{"$f":"WEEKNUM(D69)","v":2},{"$f":"B68+1","v":16},{"$f":"\"Week \"&A69&\"- Recall \"&B69","v":"Week 2- Recall 16"},"2026-01-08","YOLAAH Adult Portable Bed Rails Recalled Due to Risk of Serious Injury or Death from Entrapment and Asphyxiation Hazards; Violate Mandatory Standard for Adult Portable Bed Rails","https://www.cpsc.gov/Recalls/2026/YOLAAH-Adult-Portable-Bed%20Rails-Recalled-Due-to-Risk-of-Serious-Injury-or-Death-from-Entrapment-and-Asphyxiation-Hazards-Violate-Mandatory-Standard-for-Adult-Portable-Bed-Rails"]